[Event "*** Titled Tuesday Blitz"]
[Site "Chess.com"]
[Date "2019.11.05"]
[Round "10"]
[White "GasconJR"]
[Black "Crazy_girl99"]
[Result "1-0"]
[WhiteElo "2487"]
[BlackElo "2530"]
[TimeControl "180+2"]
[EndTime "15:17:11 PST"]
[Termination "GasconJR won by resignation"]

1. e4 {[%clk 0:03:01.9]} 1... e5 {[%clk 0:03:00.5]} 2. Nf3 {[%clk 0:03:02.8]}
2... Nc6 {[%clk 0:03:01]} 3. Bc4 {[%clk 0:03:04]} 3... Bc5 {[%clk 0:02:59.6]} 4.
O-O {[%clk 0:03:04.5]} 4... Nf6 {[%clk 0:03:01.2]} 5. d3 {[%clk 0:03:04.7]} 5...
d6 {[%clk 0:03:02]} 6. c3 {[%clk 0:03:03.7]} 6... a6 {[%clk 0:03:02.9]} 7. a4
{[%clk 0:03:04.6]} 7... h6 {[%clk 0:03:04.2]} 8. Nbd2 {[%clk 0:03:04.8]} 8...
O-O {[%clk 0:03:03.5]} 9. h3 {[%clk 0:03:05]} 9... Qe7 {[%clk 0:03:02]} 10. Re1
{[%clk 0:03:04.1]} 10... Be6 {[%clk 0:03:02.7]} 11. Bxe6 {[%clk 0:02:58.3]}
11... fxe6 {[%clk 0:03:03.2]} 12. b4 {[%clk 0:02:58.5]} 12... Ba7 {[%clk
0:03:03.8]} 13. Nc4 {[%clk 0:03:00.1]} 13... Nh5 {[%clk 0:03:03.1]} 14. Ra2
{[%clk 0:02:55.4]} 14... b5 {[%clk 0:03:02.6]} 15. Ne3 {[%clk 0:02:38.6]} 15...
Nf4 {[%clk 0:03:03.3]} 16. Ng4 {[%clk 0:02:36.4]} 16... h5 {[%clk 0:02:55.5]}
17. Ngh2 {[%clk 0:02:36.9]} 17... Qf7 {[%clk 0:02:55.2]} 18. Bxf4 {[%clk
0:02:23.8]} 18... Qxf4 {[%clk 0:02:55.9]} 19. h4 {[%clk 0:01:59.9]} 19... Ne7
{[%clk 0:02:49]} 20. Kh1 {[%clk 0:01:57.9]} 20... Ng6 {[%clk 0:02:48.7]} 21. g3
{[%clk 0:01:58.8]} 21... Qf6 {[%clk 0:02:46.4]} 22. Ng5 {[%clk 0:01:57.9]} 22...
Rfe8 {[%clk 0:02:14]} 23. Qxh5 {[%clk 0:01:57.6]} 23... Nf8 {[%clk 0:02:15.3]}
24. axb5 {[%clk 0:01:40.1]} 24... a5 {[%clk 0:01:54]} 25. bxa5 {[%clk 0:01:37]}
25... Rab8 {[%clk 0:01:53]} 26. c4 {[%clk 0:01:36.1]} 26... Bd4 {[%clk
0:01:53.6]} 27. Ng4 {[%clk 0:01:24.9]} 27... Qe7 {[%clk 0:01:46.1]} 28. Nf3
{[%clk 0:01:07.6]} 28... Bc5 {[%clk 0:01:46.4]} 29. Qg5 {[%clk 0:01:05]} 29...
Qf7 {[%clk 0:01:46.7]} 30. Nh6+ {[%clk 0:01:04.8]} 1-0

[Event "*** Titled Tuesday Blitz"]
[Site "Chess.com"]
[Date "2019.11.05"]
[Round "10"]
[White "MikaelyanArman"]
[Black "albano87"]
[Result "1-0"]
[WhiteElo "2704"]
[BlackElo "2054"]
[TimeControl "180+2"]
[EndTime "15:17:18 PST"]
[Termination "MikaelyanArman won by resignation"]

1. e4 {[%clk 0:03:01.9]} 1... c5 {[%clk 0:02:59.9]} 2. Nc3 {[%clk 0:03:02.3]}
2... Nc6 {[%clk 0:02:59.9]} 3. Bb5 {[%clk 0:03:03.1]} 3... d6 {[%clk 0:03:00.1]}
4. f4 {[%clk 0:03:03.3]} 4... Bd7 {[%clk 0:02:55.9]} 5. Nf3 {[%clk 0:03:04.3]}
5... Nd4 {[%clk 0:02:56.5]} 6. Bxd7+ {[%clk 0:03:02.4]} 6... Qxd7 {[%clk
0:02:57.2]} 7. O-O {[%clk 0:03:04.3]} 7... g6 {[%clk 0:02:56.7]} 8. d3 {[%clk
0:03:04.4]} 8... Bg7 {[%clk 0:02:57.6]} 9. f5 {[%clk 0:03:05.8]} 9... e6 {[%clk
0:02:36.5]} 10. Nxd4 {[%clk 0:03:03.1]} 10... cxd4 {[%clk 0:02:37.6]} 11. Ne2
{[%clk 0:03:03.8]} 11... Rc8 {[%clk 0:02:32.7]} 12. Kh1 {[%clk 0:03:02.6]} 12...
exf5 {[%clk 0:02:33.4]} 13. exf5 {[%clk 0:03:03.4]} 13... Rc5 {[%clk 0:02:34.6]}
14. Ng3 {[%clk 0:03:02.6]} 14... Nf6 {[%clk 0:02:28.4]} 15. Bg5 {[%clk
0:02:59.2]} 15... O-O {[%clk 0:02:29.5]} 16. Bxf6 {[%clk 0:02:55]} 16... Bxf6
{[%clk 0:02:30]} 17. Ne4 {[%clk 0:02:56.6]} 17... Bg7 {[%clk 0:02:25.9]} 18.
Nxc5 {[%clk 0:02:53.8]} 18... dxc5 {[%clk 0:02:26.4]} 19. Qg4 {[%clk 0:02:55.2]}
19... Re8 {[%clk 0:02:24.6]} 20. Rae1 {[%clk 0:02:55]} 20... Re3 {[%clk
0:02:25.5]} 21. h3 {[%clk 0:02:51.7]} 21... Qe7 {[%clk 0:02:11.8]} 22. Rxe3
{[%clk 0:02:19.9]} 22... dxe3 {[%clk 0:02:11.5]} 23. c3 {[%clk 0:02:21.2]} 23...
Be5 {[%clk 0:02:06.1]} 24. Qe4 {[%clk 0:02:18.1]} 24... Bd6 {[%clk 0:01:58.4]}
25. Qxe7 {[%clk 0:02:12.2]} 25... Bxe7 {[%clk 0:01:59.4]} 26. Re1 {[%clk
0:02:06.2]} 26... Bg5 {[%clk 0:02:00]} 27. fxg6 {[%clk 0:02:07.2]} 27... hxg6
{[%clk 0:02:00.7]} 28. g3 {[%clk 0:02:08.7]} 28... f5 {[%clk 0:01:58.2]} 29. Kg2
{[%clk 0:02:09.9]} 29... Kf7 {[%clk 0:01:59.3]} 30. Kf3 {[%clk 0:02:11.1]} 30...
Kf6 {[%clk 0:02:00.8]} 31. a4 {[%clk 0:02:09]} 31... Ke5 {[%clk 0:02:01]} 32. h4
{[%clk 0:02:06.1]} 32... Bh6 {[%clk 0:02:02]} 33. h5 {[%clk 0:02:06.5]} 33...
gxh5 {[%clk 0:01:59.4]} 34. Rh1 {[%clk 0:02:07.5]} 34... Kf6 {[%clk 0:01:49.8]}
35. Rxh5 {[%clk 0:02:07.8]} 35... Kg6 {[%clk 0:01:50.8]} 36. Rh1 {[%clk
0:02:07.4]} 36... Bg5 {[%clk 0:01:50.9]} 37. Rh8 {[%clk 0:02:07.7]} 37... Bf6
{[%clk 0:01:40.2]} 38. Rg8+ {[%clk 0:02:06.9]} 38... Kf7 {[%clk 0:01:40.3]} 39.
Rb8 {[%clk 0:02:07.3]} 1-0

[Event "*** Titled Tuesday Blitz"]
[Site "Chess.com"]
[Date "2019.11.05"]
[Round "10"]
[White "pedro_gines"]
[Black "kinga2008"]
[Result "1-0"]
[WhiteElo "2542"]
[BlackElo "1980"]
[TimeControl "180+2"]
[EndTime "15:17:40 PST"]
[Termination "pedro_gines won by checkmate"]

1. g3 {[%clk 0:02:28.7]} 1... d5 {[%clk 0:02:59.7]} 2. Bg2 {[%clk 0:02:30.6]}
2... g6 {[%clk 0:03:00.5]} 3. Nf3 {[%clk 0:02:32.5]} 3... Bg7 {[%clk 0:03:01.8]}
4. O-O {[%clk 0:02:34.4]} 4... e5 {[%clk 0:03:03.3]} 5. d3 {[%clk 0:02:34.5]}
5... Nc6 {[%clk 0:03:04.5]} 6. c4 {[%clk 0:02:35.9]} 6... dxc4 {[%clk
0:03:04.9]} 7. dxc4 {[%clk 0:02:37.8]} 7... Qxd1 {[%clk 0:03:05.9]} 8. Rxd1
{[%clk 0:02:39.1]} 8... Be6 {[%clk 0:03:00.8]} 9. Na3 {[%clk 0:02:23.6]} 9... a6
{[%clk 0:02:53.9]} 10. Ng5 {[%clk 0:02:17]} 10... Bd7 {[%clk 0:02:38.4]} 11.
Nxf7 {[%clk 0:02:16.5]} 11... Kxf7 {[%clk 0:02:36.3]} 12. Rxd7+ {[%clk
0:02:16.4]} 12... Nge7 {[%clk 0:02:38.1]} 13. Bg5 {[%clk 0:02:15.4]} 13... Rhe8
{[%clk 0:02:07.7]} 14. Rxc7 {[%clk 0:02:09.9]} 14... h6 {[%clk 0:02:07.5]} 15.
Bxe7 {[%clk 0:02:10]} 15... Rxe7 {[%clk 0:02:08.2]} 16. Rxb7 {[%clk 0:02:07.5]}
16... Rxb7 {[%clk 0:02:04.1]} 17. Bxc6 {[%clk 0:02:07.7]} 17... Rab8 {[%clk
0:02:05.2]} 18. Bxb7 {[%clk 0:02:06.9]} 18... Rxb7 {[%clk 0:02:07.1]} 19. b3
{[%clk 0:02:07.2]} 19... e4 {[%clk 0:02:07.6]} 20. Rd1 {[%clk 0:02:07.2]} 20...
Ke6 {[%clk 0:02:09]} 21. Nc2 {[%clk 0:02:07.8]} 21... Rf7 {[%clk 0:02:03.7]} 22.
Nd4+ {[%clk 0:02:07.2]} 22... Ke7 {[%clk 0:01:59.2]} 23. Nc6+ {[%clk 0:02:07.5]}
23... Kf6 {[%clk 0:02:00.4]} 24. Rd6+ {[%clk 0:02:07.4]} 24... Kf5 {[%clk
0:02:01.1]} 25. Kg2 {[%clk 0:02:07.5]} 25... g5 {[%clk 0:01:55]} 26. h3 {[%clk
0:02:06.7]} 26... h5 {[%clk 0:01:50.2]} 27. f3 {[%clk 0:02:06.9]} 27... exf3+
{[%clk 0:01:50.2]} 28. exf3 {[%clk 0:02:07.5]} 28... Bf6 {[%clk 0:01:44.1]} 29.
g4+ {[%clk 0:02:06.8]} 29... hxg4 {[%clk 0:01:43.9]} 30. hxg4+ {[%clk
0:02:08.7]} 30... Kf4 {[%clk 0:01:44.9]} 31. Kf2 {[%clk 0:02:06.7]} 31... Bc3
{[%clk 0:01:29.7]} 32. Rd5 {[%clk 0:02:00.7]} 32... Bb2 {[%clk 0:01:06.7]} 33.
Ne7 {[%clk 0:01:59.9]} 33... Rf6 {[%clk 0:00:49]} 34. Ng6+ {[%clk 0:01:59.9]}
34... Rxg6 {[%clk 0:00:45.1]} 35. Rf5# {[%clk 0:02:01.8]} 1-0

[Event "*** Titled Tuesday Blitz"]
[Site "Chess.com"]
[Date "2019.11.05"]
[Round "10"]
[White "vlad_Sid"]
[Black "SHIVACalypso"]
[Result "0-1"]
[WhiteElo "2463"]
[BlackElo "2287"]
[TimeControl "180+2"]
[EndTime "15:17:40 PST"]
[Termination "SHIVACalypso won by checkmate"]

1. c4 {[%clk 0:03:01.9]} 1... e5 {[%clk 0:02:57.8]} 2. g3 {[%clk 0:03:01.5]}
2... g6 {[%clk 0:02:57.7]} 3. Bg2 {[%clk 0:03:03.4]} 3... Bg7 {[%clk 0:02:58.6]}
4. Nc3 {[%clk 0:03:04.8]} 4... Nc6 {[%clk 0:02:56.5]} 5. Nf3 {[%clk 0:03:04.1]}
5... d6 {[%clk 0:02:56.6]} 6. O-O {[%clk 0:03:05]} 6... Nf6 {[%clk 0:02:53.7]}
7. d3 {[%clk 0:03:04]} 7... O-O {[%clk 0:02:54.1]} 8. Rb1 {[%clk 0:03:01.7]}
8... a5 {[%clk 0:02:55.6]} 9. Ne1 {[%clk 0:03:01.7]} 9... Be6 {[%clk 0:02:51.6]}
10. Nc2 {[%clk 0:02:58]} 10... Qd7 {[%clk 0:02:48.3]} 11. Ne3 {[%clk 0:02:56.7]}
11... Bh3 {[%clk 0:02:47.1]} 12. Ned5 {[%clk 0:02:48.1]} 12... Bxg2 {[%clk
0:02:44.1]} 13. Kxg2 {[%clk 0:02:48.9]} 13... Ne7 {[%clk 0:02:45.1]} 14. Nxf6+
{[%clk 0:02:45.4]} 14... Bxf6 {[%clk 0:02:44.2]} 15. Ne4 {[%clk 0:02:32]} 15...
Bg7 {[%clk 0:02:38.8]} 16. a3 {[%clk 0:02:27.1]} 16... f5 {[%clk 0:02:38.8]} 17.
Nc3 {[%clk 0:02:27.9]} 17... f4 {[%clk 0:02:33]} 18. b4 {[%clk 0:02:22.7]} 18...
axb4 {[%clk 0:02:24.5]} 19. axb4 {[%clk 0:02:24.6]} 19... Rab8 {[%clk
0:02:25.4]} 20. b5 {[%clk 0:02:21.9]} 20... g5 {[%clk 0:02:23.4]} 21. Ba3 {[%clk
0:02:14]} 21... g4 {[%clk 0:02:22]} 22. Ne4 {[%clk 0:02:03.7]} 22... f3+ {[%clk
0:02:15.1]} 23. Kg1 {[%clk 0:02:03.6]} 23... Qf5 {[%clk 0:02:10]} 24. e3 {[%clk
0:02:00.7]} 24... Qh5 {[%clk 0:02:08.2]} 25. Kh1 {[%clk 0:01:59.3]} 25... Qh3
{[%clk 0:02:03.9]} 26. Rg1 {[%clk 0:01:49.1]} 26... Rf5 {[%clk 0:02:04.4]} 27.
Qf1 {[%clk 0:01:50]} 27... Qxh2+ {[%clk 0:01:56.7]} 28. Kxh2 {[%clk 0:00:21.6]}
28... Rh5+ {[%clk 0:01:58.6]} 29. Qh3 {[%clk 0:00:23.5]} 29... Rxh3# {[%clk
0:01:57.8]} 0-1

[Event "*** Titled Tuesday Blitz"]
[Site "Chess.com"]
[Date "2019.11.05"]
[Round "10"]
[White "Eloist"]
[Black "CzechmVIII"]
[Result "1-0"]
[WhiteElo "2307"]
[BlackElo "2125"]
[TimeControl "180+2"]
[EndTime "15:18:00 PST"]
[Termination "Eloist won on time"]

1. e4 {[%clk 0:02:39.8]} 1... c5 {[%clk 0:03:00.4]} 2. d3 {[%clk 0:02:38.1]}
2... g6 {[%clk 0:02:57.3]} 3. f4 {[%clk 0:02:38.3]} 3... Bg7 {[%clk 0:02:57.5]}
4. Nf3 {[%clk 0:02:38.9]} 4... Nc6 {[%clk 0:02:56.8]} 5. Be2 {[%clk 0:02:39.2]}
5... e6 {[%clk 0:02:40.9]} 6. O-O {[%clk 0:02:38.1]} 6... d5 {[%clk 0:02:35]} 7.
c3 {[%clk 0:02:37]} 7... Nge7 {[%clk 0:02:34.2]} 8. Na3 {[%clk 0:02:30.1]} 8...
O-O {[%clk 0:02:33]} 9. e5 {[%clk 0:02:26.1]} 9... f6 {[%clk 0:02:11.8]} 10. d4
{[%clk 0:02:23]} 10... cxd4 {[%clk 0:02:06.7]} 11. cxd4 {[%clk 0:02:22.7]} 11...
fxe5 {[%clk 0:02:06.7]} 12. dxe5 {[%clk 0:02:19.3]} 12... Qb6+ {[%clk
0:01:53.5]} 13. Kh1 {[%clk 0:02:19.1]} 13... Nf5 {[%clk 0:01:51.5]} 14. Nc2
{[%clk 0:02:18.1]} 14... h5 {[%clk 0:01:13.1]} 15. Bd3 {[%clk 0:02:05.6]} 15...
Nb4 {[%clk 0:00:47.3]} 16. Bxf5 {[%clk 0:01:49.9]} 16... Rxf5 {[%clk 0:00:43.4]}
17. Be3 {[%clk 0:01:47.9]} 17... Qa5 {[%clk 0:00:21.1]} 18. Bd2 {[%clk
0:01:45.4]} 18... Bf8 {[%clk 0:00:19.9]} 19. a3 {[%clk 0:01:45.3]} 19... Qc7
{[%clk 0:00:14.2]} 20. Bxb4 {[%clk 0:01:43]} 20... Bxb4 {[%clk 0:00:13]} 21.
Nxb4 {[%clk 0:01:41.5]} 21... a5 {[%clk 0:00:14.3]} 22. Rc1 {[%clk 0:01:37.2]}
22... Qg7 {[%clk 0:00:11.7]} 23. Nxd5 {[%clk 0:01:35.2]} 23... b6 {[%clk
0:00:05.6]} 24. Nxb6 {[%clk 0:01:32.6]} 1-0

[Event "*** Titled Tuesday Blitz"]
[Site "Chess.com"]
[Date "2019.11.05"]
[Round "10"]
[White "Iyael"]
[Black "wild_cat99"]
[Result "0-1"]
[WhiteElo "2103"]
[BlackElo "2374"]
[TimeControl "180+2"]
[EndTime "15:18:04 PST"]
[Termination "wild_cat99 won by resignation"]

1. e4 {[%clk 0:03:01.9]} 1... c5 {[%clk 0:03:00]} 2. c3 {[%clk 0:03:01.6]} 2...
d5 {[%clk 0:03:00.5]} 3. exd5 {[%clk 0:03:01.6]} 3... Qxd5 {[%clk 0:03:02.4]} 4.
d4 {[%clk 0:03:02]} 4... Nf6 {[%clk 0:03:02.6]} 5. Nf3 {[%clk 0:03:01.7]} 5...
Nc6 {[%clk 0:03:01.5]} 6. Be2 {[%clk 0:02:58.7]} 6... e6 {[%clk 0:03:02]} 7. O-O
{[%clk 0:02:57.2]} 7... cxd4 {[%clk 0:03:01.6]} 8. cxd4 {[%clk 0:02:57.5]} 8...
a6 {[%clk 0:03:02.8]} 9. Nc3 {[%clk 0:02:58.2]} 9... Qd8 {[%clk 0:03:04.1]} 10.
Bf4 {[%clk 0:02:55.4]} 10... Be7 {[%clk 0:03:04.1]} 11. Qd2 {[%clk 0:02:54]}
11... O-O {[%clk 0:03:04.4]} 12. Rfd1 {[%clk 0:02:50.4]} 12... Bd7 {[%clk
0:03:01.6]} 13. Rac1 {[%clk 0:02:50.1]} 13... Nb4 {[%clk 0:03:01.8]} 14. a3
{[%clk 0:02:46.8]} 14... Nbd5 {[%clk 0:03:02.9]} 15. Bg5 {[%clk 0:02:47.3]}
15... Rc8 {[%clk 0:03:02.4]} 16. Bd3 {[%clk 0:02:44.6]} 16... Bc6 {[%clk
0:02:52.7]} 17. Bb1 {[%clk 0:02:44.5]} 17... Nxc3 {[%clk 0:02:43.6]} 18. Rxc3
{[%clk 0:02:44.6]} 18... Bxf3 {[%clk 0:02:44.6]} 19. Rxf3 {[%clk 0:02:44.7]}
19... Qd5 {[%clk 0:02:25.8]} 20. Qd3 {[%clk 0:02:43]} 20... Qxg5 {[%clk
0:01:59.4]} 21. Rxf6 {[%clk 0:02:43.3]} 21... g6 {[%clk 0:02:00.2]} 22. Rf3
{[%clk 0:02:42.6]} 22... Rc1 {[%clk 0:01:59.8]} 23. Re3 {[%clk 0:02:36.8]} 23...
Rfc8 {[%clk 0:01:52.9]} 24. g3 {[%clk 0:02:35.7]} 24... Qb5 {[%clk 0:01:45.8]}
25. Qxb5 {[%clk 0:02:23.2]} 25... Rxd1+ {[%clk 0:01:46.4]} 26. Qf1 {[%clk
0:02:23.8]} 26... Rxf1+ {[%clk 0:01:47]} 27. Kxf1 {[%clk 0:02:24.9]} 27... Rc1+
{[%clk 0:01:47.1]} 28. Re1 {[%clk 0:02:26]} 28... Bg5 {[%clk 0:01:45.3]} 29.
Rxc1 {[%clk 0:02:25]} 29... Bxc1 {[%clk 0:01:47.2]} 30. Be4 {[%clk 0:02:25.4]}
30... b6 {[%clk 0:01:46.8]} 31. Bd3 {[%clk 0:02:19.9]} 31... Bxb2 {[%clk
0:01:46.1]} 32. Bxa6 {[%clk 0:02:19.4]} 32... Bxd4 {[%clk 0:01:45.9]} 33. Ke2
{[%clk 0:02:20.3]} 33... f5 {[%clk 0:01:44]} 34. a4 {[%clk 0:02:21.2]} 34... e5
{[%clk 0:01:40.8]} 35. f3 {[%clk 0:02:20.6]} 35... Kf7 {[%clk 0:01:40.9]} 36. h3
{[%clk 0:02:21]} 36... Kf6 {[%clk 0:01:42.1]} 37. Bc4 {[%clk 0:02:15.7]} 37...
e4 {[%clk 0:01:39.4]} 38. Bd5 {[%clk 0:02:12.6]} 38... Ke5 {[%clk 0:01:40]} 39.
Bg8 {[%clk 0:02:09.7]} 39... h6 {[%clk 0:01:38.2]} 40. Bf7 {[%clk 0:02:08.4]}
40... g5 {[%clk 0:01:37.2]} 41. g4 {[%clk 0:02:06.8]} 41... fxg4 {[%clk
0:01:32.4]} 42. hxg4 {[%clk 0:02:04.7]} 42... Kf4 {[%clk 0:01:33.2]} 43. Bd5
{[%clk 0:02:03.7]} 43... exf3+ {[%clk 0:01:33.2]} 44. Bxf3 {[%clk 0:02:04.4]}
44... Kg3 {[%clk 0:01:30.3]} 0-1

[Event "*** Titled Tuesday Blitz"]
[Site "Chess.com"]
[Date "2019.11.05"]
[Round "10"]
[White "LimeInTheCoconut"]
[Black "Bathory44"]
[Result "0-1"]
[WhiteElo "2457"]
[BlackElo "2607"]
[TimeControl "180+2"]
[EndTime "15:18:07 PST"]
[Termination "Bathory44 won by resignation"]

1. Nf3 {[%clk 0:03:01.9]} 1... Nf6 {[%clk 0:03:00.4]} 2. c4 {[%clk 0:03:02.7]}
2... g6 {[%clk 0:03:01.7]} 3. Nc3 {[%clk 0:03:03.8]} 3... Bg7 {[%clk 0:03:03.2]}
4. e4 {[%clk 0:03:05.5]} 4... d6 {[%clk 0:03:04.5]} 5. d4 {[%clk 0:03:07.3]}
5... O-O {[%clk 0:03:06]} 6. Be2 {[%clk 0:03:09]} 6... e5 {[%clk 0:03:06.9]} 7.
d5 {[%clk 0:03:10.7]} 7... a5 {[%clk 0:03:07.4]} 8. Bg5 {[%clk 0:03:12.4]} 8...
h6 {[%clk 0:03:06]} 9. Be3 {[%clk 0:03:14.1]} 9... Na6 {[%clk 0:03:01.9]} 10.
Nd2 {[%clk 0:03:14.7]} 10... Nc5 {[%clk 0:02:58.2]} 11. h4 {[%clk 0:03:13.4]}
11... c6 {[%clk 0:02:46.3]} 12. h5 {[%clk 0:02:55.2]} 12... a4 {[%clk
0:02:45.2]} 13. hxg6 {[%clk 0:02:49.4]} 13... fxg6 {[%clk 0:02:46.4]} 14. Bxh6
{[%clk 0:02:27.5]} 14... Bxh6 {[%clk 0:02:48.3]} 15. Rxh6 {[%clk 0:02:28.9]}
15... Kg7 {[%clk 0:02:49.9]} 16. Rh1 {[%clk 0:02:30.4]} 16... a3 {[%clk
0:02:50.5]} 17. b3 {[%clk 0:02:22.3]} 17... Qa5 {[%clk 0:02:46.7]} 18. Qc2
{[%clk 0:02:19.5]} 18... Bd7 {[%clk 0:02:40.4]} 19. O-O-O {[%clk 0:02:04.7]}
19... cxd5 {[%clk 0:02:29.6]} 20. cxd5 {[%clk 0:01:50.6]} 20... b5 {[%clk
0:02:30.1]} 21. Kb1 {[%clk 0:00:58.7]} 21... Rac8 {[%clk 0:02:30.6]} 22. f3
{[%clk 0:00:27.7]} 22... Na4 {[%clk 0:02:00.6]} 23. bxa4 {[%clk 0:00:18.5]}
23... Rxc3 {[%clk 0:02:01]} 24. Nb3 {[%clk 0:00:07.3]} 24... Rxc2 {[%clk
0:01:59.6]} 25. Nxa5 {[%clk 0:00:08.1]} 25... Rxe2 {[%clk 0:01:57.7]} 26. Nb7
{[%clk 0:00:07.6]} 26... Nxe4 {[%clk 0:01:46.2]} 27. fxe4 {[%clk 0:00:06.4]}
27... Rff2 {[%clk 0:01:47]} 28. Nxd6 {[%clk 0:00:06.4]} 28... Rb2+ {[%clk
0:01:48]} 29. Ka1 {[%clk 0:00:07.6]} 29... Rxa2+ {[%clk 0:01:49.3]} 30. Kb1
{[%clk 0:00:09.2]} 30... Rfb2+ {[%clk 0:01:50.7]} 0-1

[Event "*** Titled Tuesday Blitz"]
[Site "Chess.com"]
[Date "2019.11.05"]
[Round "10"]
[White "VerdeNotte"]
[Black "Genghis_K"]
[Result "1-0"]
[WhiteElo "2813"]
[BlackElo "2893"]
[TimeControl "180+2"]
[EndTime "15:18:09 PST"]
[Termination "VerdeNotte won by resignation"]

1. g3 {[%clk 0:03:00.9]} 1... d5 {[%clk 0:02:49.8]} 2. Nf3 {[%clk 0:03:01.9]}
2... c6 {[%clk 0:02:50.2]} 3. Bg2 {[%clk 0:03:03]} 3... Nf6 {[%clk 0:02:52]} 4.
b3 {[%clk 0:03:04.1]} 4... g6 {[%clk 0:02:53.7]} 5. Bb2 {[%clk 0:03:05.5]} 5...
Bg7 {[%clk 0:02:54.7]} 6. O-O {[%clk 0:03:06.2]} 6... O-O {[%clk 0:02:56]} 7. d3
{[%clk 0:03:07.5]} 7... a5 {[%clk 0:02:54.8]} 8. a4 {[%clk 0:03:07.3]} 8... Na6
{[%clk 0:02:55.7]} 9. Nbd2 {[%clk 0:03:07.4]} 9... Nb4 {[%clk 0:02:54.5]} 10.
Be5 {[%clk 0:03:08.1]} 10... Nd7 {[%clk 0:02:54.6]} 11. Bxg7 {[%clk 0:03:08.4]}
11... Kxg7 {[%clk 0:02:56.5]} 12. c3 {[%clk 0:03:09.8]} 12... Na6 {[%clk
0:02:55.5]} 13. d4 {[%clk 0:03:10.5]} 13... Nf6 {[%clk 0:02:51.3]} 14. Ne5
{[%clk 0:03:11.1]} 14... Nd7 {[%clk 0:02:23.9]} 15. Nd3 {[%clk 0:03:08.1]} 15...
Re8 {[%clk 0:02:21.6]} 16. e4 {[%clk 0:03:09]} 16... dxe4 {[%clk 0:02:22.7]} 17.
Nxe4 {[%clk 0:03:10.5]} 17... Nf6 {[%clk 0:02:24.4]} 18. Re1 {[%clk 0:03:00.1]}
18... Nxe4 {[%clk 0:02:19.2]} 19. Bxe4 {[%clk 0:02:59.7]} 19... Qd6 {[%clk
0:02:18.9]} 20. h4 {[%clk 0:02:57.9]} 20... h5 {[%clk 0:02:13.1]} 21. Qc2 {[%clk
0:02:48.7]} 21... Nc7 {[%clk 0:02:13.4]} 22. Rad1 {[%clk 0:02:45.7]} 22... Bg4
{[%clk 0:02:14.1]} 23. Rd2 {[%clk 0:02:45.9]} 23... Rad8 {[%clk 0:02:14.7]} 24.
Ne5 {[%clk 0:02:45.4]} 24... Bc8 {[%clk 0:02:15.3]} 25. Nc4 {[%clk 0:02:45.1]}
25... Qf6 {[%clk 0:02:12.3]} 26. Nxa5 {[%clk 0:02:35.7]} 26... g5 {[%clk
0:02:13.8]} 27. hxg5 {[%clk 0:02:34]} 27... Qxg5 {[%clk 0:02:15.7]} 28. Nc4
{[%clk 0:02:34.7]} 28... h4 {[%clk 0:02:11.1]} 29. f4 {[%clk 0:02:35.2]} 29...
Qg4 {[%clk 0:02:07.6]} 30. Ne5 {[%clk 0:02:27.5]} 30... Qe6 {[%clk 0:02:06.2]}
31. gxh4 {[%clk 0:02:26.5]} 31... Rh8 {[%clk 0:02:06.5]} 32. Rg2+ {[%clk
0:02:23.3]} 32... Kf8 {[%clk 0:02:07.8]} 33. Bg6 {[%clk 0:02:16.9]} 33... f6
{[%clk 0:01:52.4]} 34. Bf7 {[%clk 0:02:09.8]} 34... Qf5 {[%clk 0:01:00.2]} 35.
Ng6+ {[%clk 0:02:08.2]} 35... Kxf7 {[%clk 0:01:01.7]} 36. Rxe7+ {[%clk
0:02:07.3]} 36... Kg8 {[%clk 0:01:03.2]} 37. Qxf5 {[%clk 0:01:28.3]} 37... Bxf5
{[%clk 0:01:03.2]} 38. Nxh8+ {[%clk 0:01:29.3]} 38... Kxh8 {[%clk 0:01:04.3]}
39. Rxc7 {[%clk 0:01:29.9]} 1-0

[Event "*** Titled Tuesday Blitz"]
[Site "Chess.com"]
[Date "2019.11.05"]
[Round "10"]
[White "TregubovP"]
[Black "nihalsarin"]
[Result "1/2-1/2"]
[WhiteElo "2587"]
[BlackElo "2957"]
[TimeControl "180+2"]
[EndTime "15:18:19 PST"]
[Termination "Game drawn by agreement"]

1. e4 {[%clk 0:03:01.9]} 1... e5 {[%clk 0:03:00.5]} 2. Nf3 {[%clk 0:03:02.4]}
2... Nc6 {[%clk 0:03:02]} 3. Bb5 {[%clk 0:03:02.9]} 3... a6 {[%clk 0:03:03.1]}
4. Ba4 {[%clk 0:03:02.9]} 4... Nf6 {[%clk 0:03:04.7]} 5. d4 {[%clk 0:03:03.5]}
5... Nxe4 {[%clk 0:02:58.8]} 6. O-O {[%clk 0:03:02.1]} 6... Be7 {[%clk
0:02:51.9]} 7. Re1 {[%clk 0:02:59.2]} 7... b5 {[%clk 0:02:52.4]} 8. Bb3 {[%clk
0:02:59.4]} 8... d5 {[%clk 0:02:45.9]} 9. dxe5 {[%clk 0:02:56]} 9... Be6 {[%clk
0:02:46.3]} 10. c3 {[%clk 0:02:57.2]} 10... O-O {[%clk 0:02:44.4]} 11. Nbd2
{[%clk 0:02:58.2]} 11... Nc5 {[%clk 0:02:43.4]} 12. Nd4 {[%clk 0:02:57.8]} 12...
Nxd4 {[%clk 0:02:16]} 13. cxd4 {[%clk 0:02:58.5]} 13... Nd3 {[%clk 0:02:17.9]}
14. Re3 {[%clk 0:02:55.7]} 14... Nxc1 {[%clk 0:02:19.4]} 15. Rxc1 {[%clk
0:02:54.4]} 15... Rc8 {[%clk 0:02:21]} 16. Nf3 {[%clk 0:02:51.1]} 16... c5
{[%clk 0:02:17.9]} 17. dxc5 {[%clk 0:02:50.9]} 17... Rxc5 {[%clk 0:02:18.4]} 18.
Rxc5 {[%clk 0:02:49.1]} 18... Bxc5 {[%clk 0:02:20.3]} 19. Rd3 {[%clk 0:02:50]}
19... Qb6 {[%clk 0:02:21.5]} 20. Qd2 {[%clk 0:02:35.5]} 20... Rd8 {[%clk
0:02:19.4]} 21. Nd4 {[%clk 0:02:34.4]} 21... h6 {[%clk 0:02:17.4]} 22. h3 {[%clk
0:02:33.8]} 22... a5 {[%clk 0:02:17.8]} 23. a3 {[%clk 0:02:25.7]} 23... a4
{[%clk 0:02:13.9]} 24. Bd1 {[%clk 0:02:25.4]} 24... Rc8 {[%clk 0:02:13.9]} 25.
Nxe6 {[%clk 0:01:53.5]} 25... fxe6 {[%clk 0:02:15.8]} 26. Bg4 {[%clk 0:01:54.2]}
26... Rf8 {[%clk 0:02:08.5]} 27. Rf3 {[%clk 0:01:54.8]} 27... Rxf3 {[%clk
0:02:09.9]} 28. Bxf3 {[%clk 0:01:55.9]} 28... Bd4 {[%clk 0:02:10.6]} 29. Qe2
{[%clk 0:01:56.4]} 29... Qc7 {[%clk 0:01:44.8]} 30. Bg4 {[%clk 0:01:57.5]} 30...
Kf7 {[%clk 0:01:35.3]} 31. Bxe6+ {[%clk 0:01:46]} 31... Ke7 {[%clk 0:01:36.7]}
32. Bxd5 {[%clk 0:01:46]} 32... Qxe5 {[%clk 0:01:29.7]} 33. Qxe5+ {[%clk
0:00:38.1]} 33... Bxe5 {[%clk 0:01:31.6]} 34. Bc6 {[%clk 0:00:38.9]} 34... Bxb2
{[%clk 0:01:32.4]} 35. Bxb5 {[%clk 0:00:40]} 35... Bxa3 {[%clk 0:01:33.8]} 36.
Bxa4 {[%clk 0:00:41.5]} 1/2-1/2